bitfinex-derivatives/quotes_BTCF0:USTF0_20250327
["timestamp","ask_amount","ask_price","bid_price","bid_amount"]
[1743086952884,0.17079751,87088.0,87087.0,0.1165788]
[1743086953588,0.11336781,87088.0,87087.0,0.1165788]
[1743086953885,0.11836781,87088.0,87087.0,0.1165788]
[1743086954882,0.23322631,87088.0,87087.0,0.1165788]
[1743086955082,0.11836781,87088.0,87087.0,0.1165788]
[1743086955290,0.1250656,87088.0,87087.0,0.1165788]
[1743086955484,0.1250656,87088.0,87087.0,0.2444588]
[1743086955786,8e-05,87093.0,87087.0,0.2444588]
[1743086955787,0.3608,87135.0,87118.0,0.1722252]
[1743086956095,0.1148213,87119.0,87118.0,0.00172]
[1743086956288,0.13944697,87119.0,87118.0,0.00189225]
[1743086956581,0.15013809,87119.0,87118.0,0.00017225]
[1743086956988,0.13944697,87119.0,87118.0,0.00017225]
[1743086957187,0.44244697,87119.0,87118.0,0.00193225]
[1743086957388,0.44244697,87119.0,87118.0,0.00017225]
[1743086957980,0.44296562,87119.0,87118.0,0.00017225]
[1743086958182,0.48514432,87119.0,87098.0,0.12788]
[1743086958378,0.1148427,87100.0,87099.0,0.477362]
[1743086958591,0.12451359,87100.0,87099.0,0.477362]
[1743086958888,0.00967089,87100.0,87099.0,0.59010286]
[1743086959085,0.01064366,87118.0,87117.0,0.1148202]
[1743086959086,0.12546386,87118.0,87117.0,0.1148202]
[1743086959285,0.14036992,87118.0,87117.0,0.1166202]
[1743086959484,0.1148202,87118.0,87117.0,0.1166202]
[1743086959684,0.1148202,87118.0,87117.0,0.0018]
[1743086959890,0.2148202,87118.0,87117.0,0.0018]
[1743086960486,0.4098202,87118.0,87117.0,0.0018]
[1743086960978,0.42467326,87118.0,87117.0,0.0018]
[1743086963885,0.42501689,87118.0,87117.0,0.0018]
[1743086964085,0.43576895,87118.0,87117.0,0.0018]
[1743086964295,0.43576895,87118.0,87117.0,0.1166202]
[1743086965202,0.43576895,87118.0,87117.0,0.0018]
[1743086965780,0.43576895,87118.0,87117.0,0.1166202]
[1743086965990,0.43540551,87118.0,87117.0,0.1166202]
[1743086966480,0.43540551,87118.0,87117.0,0.0018]
[1743086966992,0.43540551,87118.0,87117.0,0.1166202]
[1743086967601,0.43540551,87118.0,87117.0,0.0018]
[1743086967796,0.44214004,87118.0,87117.0,0.0018]
[1743086968895,0.44214004,87118.0,87117.0,0.1166202]
[1743086969098,0.43138798,87118.0,87117.0,0.1166202]
[1743086969299,0.41655473,87118.0,87117.0,0.1166202]
[1743086969597,0.41655473,87118.0,87117.0,0.0018]
[1743086969898,0.41655473,87118.0,87117.0,0.1166202]
[1743086970597,0.41655473,87118.0,87117.0,0.0018]
[1743086971098,0.425501,87118.0,87117.0,0.0018]
[1743086972093,0.42555134,87118.0,87117.0,0.0018]
[1743086972393,0.0574141,87111.0,87099.0,0.3608]
[1743086972703,0.1148427,87100.0,87099.0,0.5917613]
[1743086972898,0.12503932,87100.0,87099.0,0.60211174]
[1743086973086,0.11469662,87100.0,87099.0,0.61072563]
[1743086973292,0.01693115,87100.0,87099.0,0.61072563]
[1743086973488,0.2296472,87117.0,87116.0,0.1148216]
[1743086973688,0.4303472,87117.0,87116.0,0.4756216]
[1743086973888,0.4303472,87117.0,87116.0,0.4771816]
[1743086974295,0.3155223,87117.0,87116.0,0.4771816]
[1743086974598,0.01497987,87117.0,87116.0,0.4771816]
[1743086975289,0.11497987,87117.0,87116.0,0.6049416]
[1743086975486,0.1996,87123.0,87116.0,0.6049416]
[1743086975487,8e-05,87130.0,87121.0,0.0574071]
[1743086975690,0.0085648,87142.0,87121.0,0.0574071]
[1743086975691,0.057399,87134.0,87128.0,0.1148058]
[1743086975897,0.057399,87134.0,87128.0,0.1163658]
[1743086976100,8e-05,87138.0,87128.0,0.1163658]
[1743086976492,0.41897041,87129.0,87128.0,0.1163658]
[1743086976797,0.30416601,87129.0,87128.0,0.1163658]
[1743086978093,0.41897041,87129.0,87128.0,0.1163658]
[1743086978597,0.30416601,87129.0,87128.0,0.1163658]
[1743086979103,0.1,87129.0,87128.0,0.1163658]
[1743086980497,0.1,87129.0,87128.0,0.2441258]
[1743086981391,0.1,87129.0,87128.0,0.1163658]
[1743086981793,0.1,87129.0,87128.0,0.2440858]
[1743086982998,0.1,87129.0,87128.0,0.12928]
[1743086983206,0.2148044,87129.0,87128.0,0.00156]
[1743086983798,0.4135044,87129.0,87128.0,0.00156]
[1743086984202,0.4135044,87129.0,87128.0,0.1163658]
[1743086985603,0.4135044,87129.0,87128.0,0.00156]
[1743086985804,0.1148123,87127.0,87125.0,0.0574045]
[1743086985996,0.2208084,87126.0,87125.0,0.0590045]
[1743086986405,0.2208084,87126.0,87125.0,0.0574045]
[1743086986703,0.3208084,87126.0,87125.0,0.0574045]
[1743086987004,0.4235084,87126.0,87125.0,0.0574045]
[1743086987205,0.4235084,87126.0,87125.0,0.0589645]
[1743086988296,0.4235084,87126.0,87125.0,0.1163697]
[1743086989305,0.4235084,87126.0,87125.0,0.2216697]
[1743086990106,0.42972522,87126.0,87125.0,0.2216697]
[1743086990696,0.42972522,87126.0,87125.0,0.3233697]
[1743086991200,0.42972522,87126.0,87125.0,0.2216697]
[1743086991903,0.42972522,87126.0,87125.0,0.00156]
[1743086992902,0.42972522,87126.0,87125.0,0.1163697]
[1743086995499,0.31491682,87126.0,87125.0,0.2197697]
[1743086995904,0.31491682,87126.0,87125.0,0.3267697]
[1743086996109,0.21221682,87126.0,87125.0,0.3267697]
[1743086998609,1e-08,87137.0,87136.0,0.6829952]
[1743086998806,1e-08,87137.0,87136.0,0.82095428]
[1743087000696,0.0573783,87166.0,87162.0,0.0573798]
[1743087000897,8e-05,87165.0,87164.0,0.1147583]
[1743087001108,8e-05,87165.0,87164.0,0.1163183]
[1743087001300,0.1147554,87167.0,87166.0,0.1147544]
[1743087001505,0.1147554,87167.0,87166.0,0.00156]
[1743087001705,0.2134554,87167.0,87166.0,0.00156]
[1743087001910,0.2134554,87167.0,87166.0,0.1163157]
[1743087002112,0.3138554,87167.0,87166.0,0.3029157]
[1743087002317,0.3138544,87167.0,87166.0,0.3029157]
[1743087002614,0.4138544,87167.0,87166.0,0.3029157]
[1743087002811,0.2991,87167.0,87166.0,0.3029157]
[1743087003404,0.2991,87167.0,87166.0,0.31150237]
[1743087003617,0.4138544,87167.0,87166.0,0.31150237]
[1743087004411,0.2991,87167.0,87166.0,0.31150237]
[1743087004812,0.23772032,87174.0,87173.0,0.1147465]
[1743087005116,0.23772032,87174.0,87173.0,0.4771065]
[1743087005315,0.23772032,87174.0,87173.0,0.6047465]
[1743087005707,0.23772032,87174.0,87173.0,0.7927465]
[1743087006310,0.1931,87183.0,87182.0,0.1147346]
[1743087006511,0.1931,87183.0,87182.0,0.4770946]
[1743087007318,0.1147307,87185.0,87184.0,0.114732]
[1743087007513,0.3629933,87187.0,87186.0,0.1147294]
[1743087007704,0.1909,87187.0,87186.0,0.1162894]
[1743087008105,0.1909,87187.0,87186.0,0.2138894]
[1743087008315,0.2909,87187.0,87186.0,0.2138894]
[1743087008515,0.1,87187.0,87186.0,0.2138894]
[1743087008822,0.1,87187.0,87186.0,0.2240632]
[1743087009021,0.2147281,87187.0,87186.0,0.0117338]
[1743087009215,0.2147281,87187.0,87186.0,0.1264632]
[1743087009915,0.2147281,87187.0,87186.0,0.2213632]
[1743087010113,0.1,87187.0,87186.0,0.2213632]
[1743087010511,0.2147281,87187.0,87186.0,0.00156]
[1743087011021,0.1147412,87177.0,87168.0,0.12756]
[1743087011217,0.1147412,87177.0,87176.0,0.11491464]
[1743087011421,0.1147412,87177.0,87176.0,0.00177214]
[1743087011727,0.1147412,87177.0,87176.0,0.11651464]
[1743087011911,0.3029412,87177.0,87176.0,0.11651464]
[1743087012113,0.4029412,87177.0,87176.0,0.21141464]
[1743087012317,0.4029412,87177.0,87176.0,0.11651464]
[1743087013222,0.2882,87177.0,87176.0,0.11651464]
[1743087013428,0.4029412,87177.0,87176.0,0.11651464]
[1743087013618,0.2882,87177.0,87176.0,0.11651464]
[1743087013814,0.4029412,87177.0,87176.0,0.31211464]
[1743087015035,0.4029412,87177.0,87176.0,0.00177214]
[1743087015217,0.4029412,87177.0,87176.0,0.11651464]
[1743087016528,0.4029412,87177.0,87176.0,0.00177214]
[1743087017121,0.4029412,87177.0,87176.0,0.11651464]
[1743087018529,0.4029412,87177.0,87176.0,0.00177214]
[1743087018828,0.4029412,87177.0,87176.0,0.11651464]
[1743087022935,8e-05,87183.0,87176.0,0.11651464]
[1743087022936,0.00016,87186.0,87182.0,0.1147346]
[1743087023126,0.00016,87186.0,87184.0,0.475532]
[1743087023321,0.1147307,87186.0,87184.0,0.45764]
[1743087023522,0.1003,87185.0,87184.0,0.572372]
[1743087023729,0.3073307,87185.0,87184.0,0.572372]
[1743087023927,0.1926,87185.0,87184.0,0.572372]
[1743087024334,0.2926,87185.0,87184.0,0.572372]
[1743087024725,0.2926,87185.0,87184.0,0.477172]
[1743087025336,0.4073307,87185.0,87184.0,0.477172]
[1743087025723,0.2926,87185.0,87184.0,0.477172]
[1743087026529,0.2926,87185.0,87184.0,0.604652]
[1743087026734,0.2926,87185.0,87184.0,0.703352]
[1743087026934,0.2926,87185.0,87184.0,0.805652]
[1743087027334,0.2926,87185.0,87184.0,0.604652]
[1743087028236,0.2926,87185.0,87184.0,0.801652]
[1743087028732,0.1003,87199.0,87192.0,0.0573601]
[1743087028925,0.19168,87198.0,87197.0,0.1147149]
[1743087029121,0.09318,87198.0,87197.0,0.4770749]
[1743087029320,0.0931,87198.0,87197.0,0.6045549]
[1743087029528,0.1916,87198.0,87197.0,0.6045549]
[1743087030339,0.1916,87198.0,87197.0,0.61535821]
[1743087032235,0.3063136,87198.0,87197.0,0.37316331]
[1743087032537,0.4063136,87198.0,87197.0,0.37316331]
[1743087032741,0.4063136,87198.0,87197.0,0.50060331]
[1743087032934,0.4063136,87198.0,87197.0,0.36236]
[1743087033338,0.4063136,87198.0,87197.0,0.00156]
[1743087033538,0.1147215,87192.0,87191.0,0.1147221]
[1743087033929,0.1147333,87183.0,87182.0,0.20169844]
[1743087034334,0.1147333,87183.0,87182.0,0.20325844]
[1743087034531,0.1147412,87177.0,87170.0,0.34114777]
[1743087034841,0.1147412,87177.0,87166.0,0.00858667]
[1743087034842,0.11582121,87177.0,87176.0,0.20384749]
[1743087035041,0.47662121,87177.0,87176.0,0.20384749]
[1743087035336,0.30912121,87177.0,87176.0,0.67938999]
[1743087036142,0.30912121,87177.0,87176.0,0.68138999]
[1743087036733,0.40912121,87177.0,87176.0,0.68138999]
[1743087037535,0.40912121,87177.0,87176.0,0.20584749]
[1743087037939,0.40912121,87177.0,87176.0,0.20784749]
[1743087038136,0.68656121,87177.0,87176.0,0.20784749]
[1743087038335,0.68656121,87177.0,87156.0,0.40774632]
[1743087038336,0.58055196,87177.0,87156.0,0.40774632]
[1743087038537,0.1147834,87145.0,87144.0,0.00172089]
[1743087038742,0.00076,87145.0,87121.0,0.3608]
[1743087038943,0.3608,87137.0,87134.0,0.1721935]
[1743087039245,0.1148137,87122.0,87119.0,0.68209057]
[1743087039450,0.4756163,87120.0,87119.0,0.68269057]
[1743087039744,0.4762563,87120.0,87119.0,0.0006]
[1743087039938,0.1148176,87119.0,87118.0,0.16609158]
[1743087040137,0.1156176,87119.0,87118.0,0.16669158]
[1743087040343,0.1148255,87113.0,87112.0,0.5458446]
[1743087040532,0.4756255,87113.0,87112.0,0.5464446]
[1743087040736,0.4766255,87113.0,87112.0,0.6612714]
[1743087040942,0.61022502,87113.0,87112.0,0.6612714]
[1743087042046,0.6040655,87113.0,87112.0,0.6612714]
[1743087042248,0.6040655,87113.0,87112.0,0.6622714]
[1743087042440,0.7040655,87113.0,87112.0,0.6632714]
[1743087043040,0.7040655,87113.0,87112.0,0.5474446]
[1743087043441,0.8917655,87113.0,87112.0,0.5474446]
[1743087044152,0.0574206,87102.0,87095.0,0.1012]
[1743087044340,0.1148427,87100.0,87099.0,0.1148427]
[1743087044535,0.11604271,87100.0,87099.0,0.1154427]
[1743087044743,0.30804271,87100.0,87099.0,0.0006]
[1743087045049,0.172279,87094.0,87093.0,0.1148506]
[1743087045250,0.1734364,87094.0,87093.0,0.1154919]
[1743087045643,0.3654364,87094.0,87093.0,0.1154919]
[1743087046051,0.7262364,87094.0,87093.0,0.00064]
[1743087046252,0.1148611,87086.0,87085.0,0.00017214]
[1743087046445,0.1148611,87086.0,87085.0,0.00077214]
[1743087046446,0.1160211,87086.0,87085.0,0.00077214]
[1743087046842,0.1160211,87086.0,87085.0,0.00017214]
[1743087047041,0.3075211,87086.0,87085.0,0.00017214]
[1743087047237,0.41789836,87086.0,87085.0,0.00017214]
[1743087047642,0.4075211,87086.0,87085.0,0.00017214]
[1743087047943,0.4075211,87086.0,87085.0,0.00577214]
[1743087048151,0.2160211,87086.0,87085.0,0.12003454]
[1743087048349,0.2160211,87086.0,87085.0,0.21657454]
[1743087048546,0.2160211,87086.0,87085.0,0.10171214]
[1743087048744,0.2160211,87086.0,87085.0,0.10607214]
[1743087049051,0.2160211,87086.0,87085.0,0.22157454]
[1743087049239,0.2160211,87086.0,87085.0,0.58237454]
[1743087049447,0.10116,87086.0,87085.0,0.58237454]
[1743087049846,0.2160211,87086.0,87085.0,0.58237454]
[1743087050248,0.2160211,87086.0,87085.0,0.01081214]
[1743087050443,0.5768211,87086.0,87085.0,0.01017214]
[1743087050854,0.78327129,87086.0,87085.0,0.01017214]
[1743087051752,0.7725211,87086.0,87085.0,0.01017214]
[1743087052965,0.1148677,87081.0,87080.0,0.1012]
[1743087053250,0.11610771,87081.0,87080.0,0.1018]
[1743087054052,0.11610771,87081.0,87080.0,0.0006]
[1743087054251,0.1148743,87076.0,87072.0,0.20127224]
[1743087054553,0.4756783,87073.0,87072.0,0.20191224]
[1743087054741,0.4768383,87073.0,87072.0,0.20191224]
[1743087054939,0.4708383,87073.0,87072.0,0.20127224]
[1743087055140,0.4658383,87073.0,87072.0,0.20127224]
[1743087055647,0.47661611,87073.0,87072.0,0.00417224]
[1743087055852,0.47661611,87073.0,87072.0,0.00917224]
[1743087056045,0.57661611,87073.0,87072.0,0.00917224]
[1743087057750,0.1149047,87053.0,87052.0,0.3608]
[1743087057943,0.1149047,87053.0,87052.0,0.4763056]
[1743087057944,0.11614471,87053.0,87052.0,0.4763056]
[1743087058150,0.1160647,87053.0,87052.0,0.4763056]
[1743087058654,0.2160647,87053.0,87052.0,0.4763056]
[1743087058850,0.2170647,87053.0,87052.0,0.48691631]
[1743087059043,0.2170647,87053.0,87052.0,0.69221631]
[1743087059245,0.2170647,87053.0,87052.0,0.2079]
[1743087059546,0.2180647,87053.0,87052.0,0.2073]
[1743087059745,0.1149152,87045.0,87040.0,0.0574607]
[1743087060047,0.4768752,87045.0,87039.0,0.00875118]
[1743087060248,0.229868,87034.0,87033.0,0.0574642]
[1743087060447,0.1160897,87034.0,87033.0,0.1155291]
[1743087060845,0.1160897,87034.0,87033.0,0.1149311]
[1743087061049,0.1160897,87034.0,87033.0,0.1155311]
[1743087061444,0.2160897,87034.0,87033.0,0.0006]
[1743087061952,0.3139897,87034.0,87033.0,0.0006]
[1743087062742,0.0574684,87029.0,87017.0,0.1038]
[1743087062949,0.1149496,87019.0,87018.0,0.0961]
[1743087063150,0.1164696,87019.0,87018.0,0.2110509]
[1743087063349,0.1164696,87019.0,87018.0,0.10654026]
[1743087063753,0.1164696,87019.0,87018.0,0.0961]
[1743087064650,0.1164696,87019.0,87018.0,0.2110509]
[1743087064856,0.2174696,87019.0,87018.0,0.0961]
[1743087065058,0.2174696,87019.0,87018.0,0.2110509]
[1743087065447,0.2184696,87019.0,87018.0,0.2110509]
[1743087065752,0.2184696,87019.0,87018.0,0.5718509]
[1743087065957,0.10352,87019.0,87018.0,0.6693509]
[1743087066258,0.102,87019.0,87018.0,0.6693509]
[1743087067258,0.002,87019.0,87018.0,0.7968309]
[1743087068260,0.10207136,87023.0,87022.0,0.1149456]
[1743087069161,0.10207136,87023.0,87022.0,0.3163456]
[1743087069658,0.10307136,87023.0,87022.0,0.3163456]
[1743087069957,0.13547415,87030.0,87029.0,0.1149364]
[1743087070147,0.17097393,87038.0,87037.0,0.1149258]
[1743087070460,0.17253394,87038.0,87037.0,0.4757258]
[1743087070850,0.17097393,87038.0,87037.0,0.4757258]
[1743087071049,0.17253394,87038.0,87037.0,0.6698258]
[1743087071360,0.27253394,87038.0,87037.0,0.6698258]
[1743087071860,0.10164001,87038.0,87037.0,0.6698258]
[1743087072748,0.10164001,87038.0,87037.0,0.3110258]
[1743087072749,0.21656451,87038.0,87037.0,0.3110258]
[1743087072952,0.30284001,87038.0,87037.0,0.3110258]
[1743087073546,0.41776451,87038.0,87037.0,0.3110258]
[1743087076051,0.30284001,87038.0,87037.0,0.3110258]
[1743087076251,0.41776451,87038.0,87037.0,0.3110258]
[1743087076561,0.30284001,87038.0,87037.0,0.3110258]
[1743087076758,0.41776451,87038.0,87037.0,0.3110258]
[1743087077962,0.41776451,87038.0,87037.0,0.2135258]
[1743087078352,0.41776451,87038.0,87037.0,0.3113258]
[1743087079662,0.10164001,87038.0,87037.0,0.3113258]
[1743087080355,0.00156001,87038.0,87037.0,0.3113258]
[1743087080558,0.11648451,87038.0,87037.0,0.3113258]
[1743087081161,0.21648451,87038.0,87037.0,0.3113258]
[1743087081766,0.10156001,87038.0,87037.0,0.3113258]
[1743087082256,0.21648451,87038.0,87037.0,0.1964]
[1743087082650,0.40838451,87038.0,87037.0,0.3113258]
[1743087084367,0.40838451,87038.0,87037.0,0.1964]
[1743087085167,0.40838451,87038.0,87037.0,0.0986]
[1743087085366,0.40838451,87038.0,87037.0,0.2135258]
[1743087085865,0.40838451,87038.0,87037.0,0.3114258]
[1743087086066,0.40838451,87038.0,87037.0,0.1965]
[1743087086270,0.40838451,87038.0,87037.0,0.002]
[1743087086567,8e-05,87058.0,87057.0,0.1148994]
[1743087086864,0.45981096,87069.0,87064.0,0.1148901]
[1743087087067,0.23880033,87065.0,87064.0,0.4756901]
[1743087087360,0.23880033,87065.0,87064.0,0.6727301]
[1743087087563,0.34492736,87069.0,87064.0,0.6727301]
[1743087087564,0.34492736,87069.0,87068.0,0.1148849]
[1743087087757,0.00017235,87073.0,87071.0,0.1148809]
[1743087087958,0.27240036,87072.0,87071.0,0.61433416]
[1743087088357,0.37240036,87072.0,87071.0,0.61433416]
[1743087088563,0.37240036,87072.0,87071.0,0.71583416]
[1743087088764,0.37240036,87072.0,87071.0,0.58935977]
[1743087088963,0.37240036,87072.0,87071.0,0.35503416]
[1743087089271,0.57770036,87072.0,87071.0,0.25353416]
[1743087089659,0.57770036,87072.0,87071.0,0.25453416]
[1743087090060,0.57770036,87072.0,87071.0,0.35713416]
[1743087090264,0.37240036,87072.0,87071.0,0.35813416]
[1743087090767,8e-05,87083.0,87071.0,0.35813416]
[1743087090768,0.3608,87088.0,87080.0,0.114869]
[1743087090970,0.10268,87087.0,87086.0,0.1148611]
[1743087091266,0.1026,87087.0,87086.0,0.1148611]
[1743087091460,0.20104,87087.0,87086.0,0.1155011]
[1743087091656,0.2004,87087.0,87086.0,0.1148611]
[1743087092267,0.3004,87087.0,87086.0,0.1148611]
[1743087092778,0.4152598,87087.0,87086.0,0.1148611]
[1743087096376,0.4158998,87087.0,87086.0,0.1155011]
[1743087096765,0.4158998,87087.0,87086.0,0.00064]
[1743087096973,0.35847,87087.0,87083.0,0.1148638]
[1743087097174,0.30104,87087.0,87086.0,0.1148611]
[1743087097374,0.30104,87087.0,87086.0,0.1155811]
[1743087098374,0.4158998,87087.0,87086.0,0.1155811]
[1743087101063,0.30104,87087.0,87086.0,0.1155811]
[1743087101264,0.10064,87087.0,87086.0,0.1155811]
[1743087101471,8e-05,87099.0,87093.0,0.1148519]
[1743087101775,0.3608,87108.0,87107.0,0.1148334]
[1743087101966,0.36152,87108.0,87107.0,0.1156734]
[1743087102870,0.36152,87108.0,87107.0,0.12626098]
[1743087103371,0.10072,87108.0,87107.0,0.12626098]
[1743087103574,0.06551819,87108.0,87107.0,0.12626098]
[1743087103874,0.36088,87128.0,87127.0,0.1148071]
[1743087104066,0.53412931,87128.0,87127.0,0.1158471]
[1743087104268,0.53404931,87128.0,87127.0,0.1158471]
[1743087104665,0.53404931,87128.0,87127.0,0.00104]
[1743087104867,0.1722253,87121.0,87120.0,0.1148135]
[1743087105069,0.41924771,87121.0,87120.0,0.2430935]
[1743087105378,0.00104001,87121.0,87120.0,0.2430935]
[1743087105565,0.2056,87126.0,87125.0,0.1148097]
[1743087105764,0.2056,87126.0,87125.0,0.1158897]
[1743087105765,0.20668,87126.0,87125.0,0.1158897]
[1743087106173,0.3214884,87126.0,87125.0,0.1158897]
[1743087106471,0.4214884,87126.0,87125.0,0.00987808]
[1743087106666,0.4224884,87126.0,87125.0,0.02055526]
[1743087106862,0.4224884,87126.0,87125.0,0.01175718]
[1743087107067,0.1148163,87121.0,87120.0,0.1148163]
[1743087107267,0.114813,87123.0,87122.0,0.1148123]
[1743087107469,0.21655301,87123.0,87122.0,0.1158523]
[1743087108469,0.21655301,87123.0,87122.0,0.12656834]
[1743087109075,0.21655301,87123.0,87122.0,0.1351778]
[1743087109270,0.31655301,87123.0,87122.0,0.1351778]
[1743087109673,0.31655301,87123.0,87122.0,0.00964946]
[1743087109674,0.31755301,87123.0,87122.0,0.00964946]
[1743087109978,0.31755301,87123.0,87122.0,0.00860946]
[1743087110181,0.31755301,87123.0,87122.0,0.1158537]
[1743087110970,0.31755301,87123.0,87122.0,0.2179537]
[1743087111171,0.20274001,87123.0,87122.0,0.2179537]
[1743087112283,0.20374001,87123.0,87122.0,0.33351602]
[1743087112482,0.10304001,87123.0,87122.0,0.46071602]
[1743087112681,0.1059,87142.0,87135.0,0.1147965]
[1743087112986,0.0573844,87156.0,87153.0,0.1721525]
[1743087113171,0.0986,87155.0,87154.0,0.1147715]
[1743087113372,0.0986,87155.0,87154.0,0.3275715]
[1743087113579,0.0574564,87169.0,87166.0,0.1147557]
[1743087113878,0.68013178,87167.0,87166.0,0.1147557]
[1743087114081,0.1147649,87159.0,87158.0,0.00017215]
[1743087114284,0.4755649,87159.0,87158.0,0.00017215]
[1743087114685,0.4755649,87159.0,87158.0,0.11493835]
[1743087114885,0.3608,87159.0,87158.0,0.11493835]
[1743087115493,0.3608,87159.0,87158.0,0.22073835]
[1743087115729,0.4755649,87159.0,87158.0,0.11493835]
[1743087115899,0.3608,87159.0,87158.0,0.11493835]
[1743087116294,0.46957273,87159.0,87158.0,0.11493835]
[1743087116490,0.4648,87159.0,87158.0,0.11493835]
[1743087116691,0.104,87159.0,87158.0,0.67983835]
[1743087116896,0.109,87159.0,87158.0,0.67983835]
[1743087117103,0.68013178,87167.0,87166.0,0.1147557]
[1743087117298,0.1721427,87163.0,87162.0,0.1147586]
[1743087117495,0.0573804,87163.0,87162.0,0.1147586]
[1743087118195,0.1573804,87163.0,87162.0,0.1147586]
[1743087118944,0.1573804,87163.0,87162.0,0.1165186]
[1743087119118,0.1583804,87163.0,87162.0,0.1165186]
[1743087119703,0.106,87163.0,87162.0,0.1165186]
[1743087119895,0.2207597,87163.0,87162.0,0.1165186]
[1743087120309,0.106,87163.0,87162.0,0.1165186]
[1743087120500,0.2207597,87163.0,87162.0,0.00176]
[1743087120706,0.0573817,87161.0,87159.0,0.1147614]
[1743087120898,0.4755636,87160.0,87159.0,0.0018]
[1743087121099,0.5786636,87160.0,87159.0,0.1165649]
[1743087122307,0.6796636,87160.0,87159.0,0.1165649]
[1743087122600,0.6796636,87160.0,87159.0,0.0018]
[1743087122805,0.6846636,87160.0,87159.0,0.1165649]
[1743087122997,0.6846636,87160.0,87159.0,0.1164849]
[1743087123400,0.6846636,87160.0,87159.0,0.00172]
[1743087123598,0.1147649,87159.0,87158.0,0.00017215]
[1743087123798,0.2159649,87159.0,87158.0,0.00017215]
[1743087123999,0.2159649,87159.0,87158.0,0.11493835]
[1743087124000,0.1012,87159.0,87158.0,0.11493835]
[1743087124199,0.2159649,87159.0,87158.0,0.11665835]
[1743087124600,0.2159649,87159.0,87158.0,0.22315835]
[1743087124800,0.2209649,87159.0,87158.0,0.32095835]
[1743087125103,0.3209649,87159.0,87158.0,0.32095835]
[1743087125545,0.3219649,87159.0,87158.0,0.32095835]
[1743087126501,0.3219649,87159.0,87158.0,0.10839215]
[1743087126701,0.3219649,87159.0,87158.0,0.00189215]
[1743087126903,0.3219649,87159.0,87158.0,0.00017215]
[1743087127206,0.3219649,87159.0,87158.0,0.00189215]
[1743087127402,0.1722057,87132.0,87128.0,0.0574024]
[1743087127598,0.1148031,87130.0,87129.0,0.22474]
[1743087128007,0.1148031,87130.0,87129.0,0.09942]
[1743087128216,0.2137031,87130.0,87129.0,0.09942]
[1743087128417,0.0989,87130.0,87129.0,0.2142244]
[1743087128838,0.3137031,87130.0,87129.0,0.3215244]
[1743087129109,0.3137031,87130.0,87129.0,0.3245244]
[1743087129511,0.3137031,87130.0,87129.0,0.3265244]
[1743087129811,0.3137031,87130.0,87129.0,0.00672]
[1743087130001,0.3137031,87130.0,87129.0,0.005]
[1743087130206,0.1989,87130.0,87129.0,0.1188044]
[1743087130407,0.1989,87130.0,87129.0,0.1205244]
[1743087130603,0.1,87130.0,87129.0,0.3495644]
[1743087130800,0.057392,87146.0,87131.0,0.0574005]
[1743087131008,0.2159755,87151.0,87150.0,0.1147768]
[1743087131201,0.2733638,87151.0,87150.0,0.00176]
[1743087131509,0.1147807,87147.0,87146.0,0.3148813]
[1743087131709,0.1147807,87147.0,87146.0,0.116502]
[1743087131909,0.1147807,87147.0,87146.0,0.00172]
[1743087132104,0.1147807,87147.0,87146.0,0.116502]
[1743087132413,0.1147807,87147.0,87146.0,0.12719308]
[1743087133010,0.002,87147.0,87146.0,0.58759308]
[1743087133202,0.102,87147.0,87146.0,0.58759308]
[1743087133404,0.102,87147.0,87146.0,0.69109308]
[1743087133600,0.103,87147.0,87146.0,0.69109308]
[1743087134404,0.003,87147.0,87146.0,0.69109308]
[1743087134898,0.003,87147.0,87146.0,0.57631108]
[1743087135109,0.003,87147.0,87146.0,0.22679308]
[1743087135300,0.3263807,87147.0,87146.0,0.11201108]
[1743087135505,0.6871807,87147.0,87146.0,0.116502]
[1743087135712,0.6871807,87147.0,87146.0,0.114782]
[1743087135916,0.6871807,87147.0,87146.0,0.00172]
[1743087136103,0.7871807,87147.0,87146.0,0.114782]
[1743087136438,0.79777085,87147.0,87146.0,0.114782]
[1743087136916,0.1147847,87145.0,87144.0,0.12556126]
[1743087137119,0.1147847,87145.0,87144.0,0.12728126]
[1743087137409,0.3233847,87145.0,87144.0,0.1165034]
[1743087137610,0.4233847,87145.0,87144.0,0.1165034]
[1743087138111,0.4233847,87145.0,87144.0,0.00172]
[1743087138301,0.4233847,87145.0,87144.0,0.1165047]
[1743087138302,0.5210847,87145.0,87144.0,0.1165047]
[1743087138704,0.5210847,87145.0,87144.0,0.00172]
[1743087138906,0.5210847,87145.0,87138.0,0.00017215]
[1743087138907,0.114786,87144.0,87143.0,0.1147859]
[1743087139315,0.308586,87144.0,87143.0,0.1147859]
[1743087139608,0.308586,87144.0,87143.0,0.1165059]
[1743087140115,0.309586,87144.0,87143.0,0.1165059]
[1743087140311,0.409586,87144.0,87143.0,0.1165059]
[1743087140919,0.2948,87144.0,87143.0,0.1165059]
[1743087141407,0.1976,87144.0,87143.0,0.1165059]
[1743087141615,0.1976,87144.0,87143.0,0.2173059]
[1743087142118,0.3123847,87144.0,87143.0,0.2173059]
[1743087142319,0.1976,87144.0,87143.0,0.2173059]
[1743087142719,0.101,87144.0,87143.0,0.2173059]
[1743087142920,0.101,87144.0,87143.0,0.3442659]
[1743087143711,0.001,87144.0,87143.0,0.3442659]
[1743087147417,0.101,87144.0,87143.0,0.3442659]
[1743087148320,0.2157847,87144.0,87143.0,0.3442659]
[1743087148726,0.4185847,87144.0,87143.0,0.3442659]
[1743087148925,0.4185847,87144.0,87143.0,0.4480659]
[1743087149122,0.4185847,87144.0,87143.0,0.3211059]
[1743087149328,0.4185847,87144.0,87143.0,0.00172]
[1743087149630,0.114786,87143.0,87142.0,0.1147864]
[1743087149827,0.1147899,87140.0,87139.0,0.0573953]
[1743087150039,0.1147899,87140.0,87139.0,0.0591953]
[1743087150232,0.3137899,87140.0,87139.0,0.0591953]
[1743087150619,0.3137899,87140.0,87139.0,0.0018]
[1743087151123,0.1147913,87139.0,87138.0,0.11496475]
[1743087151327,0.1147913,87139.0,87138.0,0.00017215]
[1743087151626,0.3080913,87139.0,87138.0,0.00017215]
[1743087152764,0.4080913,87139.0,87138.0,0.00017215]
[1743087152924,0.4080913,87139.0,87138.0,0.00117215]
[1743087153435,0.4080913,87139.0,87138.0,0.00217215]
[1743087154134,0.4080913,87139.0,87138.0,1e-08]
[1743087155724,0.4080913,87139.0,87138.0,0.00172001]
[1743087155982,0.4080913,87139.0,87138.0,1e-08]
[1743087158432,0.4080913,87139.0,87138.0,0.11479261]
[1743087158632,0.1,87139.0,87138.0,0.21439261]
[1743087158936,0.2147913,87139.0,87138.0,0.19770001]
[1743087159205,0.4091913,87139.0,87138.0,0.10140001]
[1743087159335,0.54592008,87139.0,87138.0,0.10140001]
[1743087159735,0.54592008,87139.0,87138.0,0.21619261]